fUSD/lending_fUSD_20250702
["ID","MTS","AMOUNT","RATE_DAILY","PERIOD"]
[368970495,1751417446414,-568.74107,0.00016711,2]
[368970497,1751417446423,-568.74107,0.00016711,2]
[368970499,1751417446433,-1213.346159,0.00016711,2]
[368970501,1751417446443,-1213.346159,0.00016711,2]
[368970503,1751417446452,-151.0,0.00016711,2]
[368970505,1751417446461,-151.0,0.00016711,2]
[368970507,1751417446471,-666.0,0.00016711,2]
[368970509,1751417446480,-151.0,0.00016711,2]
[368970511,1751417446489,-300.0,0.00016711,2]
[368970513,1751417446498,-287.058263,0.00016711,2]
[368970515,1751417446507,-287.058263,0.00016711,2]
[368970517,1751417446516,-151.0,0.00016711,2]
[368970519,1751417446526,-516.8,0.00016711,2]
[368970521,1751417446535,-904.0,0.00016712,2]
[368970523,1751417446544,-150.0,0.00016712,2]
[368970524,1751417446553,-150.0,0.00016712,2]
[368970526,1751417446563,-150.0,0.00016712,2]
[368970528,1751417446572,-150.0,0.00016712,2]
[368970530,1751417446582,-500.0,0.00016712,2]
[368970532,1751417446592,-150.0,0.00016712,2]
[368970534,1751417446601,-500.0,0.00016712,2]
[368970536,1751417446611,-500.0,0.00016712,2]
[368970539,1751417446620,-500.0,0.00016712,2]
[368970540,1751417446630,-150.0,0.00016712,2]
[368970543,1751417446640,-150.0,0.00016712,2]
[368970545,1751417446649,-1010.0,0.00016712,2]
[368970547,1751417446659,-151.0,0.00016712,2]
[368970549,1751417446668,-461.9422129,0.00016712,2]
[368970551,1751417446677,-122.0943934,0.00016712,2]
[368971862,1751417535267,154.26,0.00013699,2]
[368971973,1751418118781,516.0,0.00013547,2]
[368972090,1751418631433,154.26,0.00013699,2]
[368972091,1751418631960,-194.0,0.00013902,2]
[368972092,1751418631970,-352.33219939,0.00014574,2]
[368972093,1751418631982,-917.48726075,0.00014574,2]
[368972094,1751418632082,-137.50848136,0.00014574,2]
[368972095,1751418632092,-346.0,0.00014674,2]
[368972096,1751418632101,-346.0,0.00014714,2]
[368972097,1751418632111,-346.0,0.0001482,2]
[368972098,1751418632120,-346.0,0.0001484,2]
[368972099,1751418632131,-250.0,0.00014875,2]
[368972100,1751418632341,-158.73,0.00014996,2]
[368972101,1751418632352,-168.0,0.00015007,2]
[368972102,1751418632362,-168.0,0.00015055,2]
[368972103,1751418632372,-346.0,0.00015152,2]
[368972104,1751418632381,-168.0,0.00015243,2]
[368972105,1751418632391,-300.0,0.00015309,2]
[368972106,1751418632400,-300.0,0.00015309,2]
[368972107,1751418632409,-1108.0,0.00015309,2]
[368972108,1751418632418,-9999.99,0.0001531,2]
[368972110,1751418632428,-999.99,0.0001531,2]
[368972112,1751418632437,-150.99,0.0001531,2]
[368972114,1751418632446,-6857.86,0.0001531,2]
[368972116,1751418632456,-5213.68,0.0001531,2]
[368972118,1751418632466,-178.0,0.00015416,2]
[368972119,1751418632475,-168.0,0.00015417,2]
[368972120,1751418632485,-299.99,0.00015417,2]
[368972121,1751418632495,-3448.16,0.00015417,2]
[368972122,1751418632506,-299.87,0.00015417,2]
[368972123,1751418632515,-9999.99,0.00015417,2]
[368972124,1751418632525,-794.95,0.00015699,2]
[368972125,1751418632535,-794.95,0.00015704,2]
[368972126,1751418632544,-47615.87141197,0.00015704,2]
[368972127,1751418632555,-40508.14858803,0.00015704,2]
[368972128,1751418632564,-794.95,0.00015708,2]
[368972129,1751418632574,-794.95,0.00015712,2]
[368972130,1751418632583,-794.95,0.00015716,2]
[368972131,1751418632592,-1000.0,0.0001572,2]
[368972132,1751418632602,-794.95,0.0001572,2]
[368972133,1751418632611,-794.95,0.00015724,2]
[368972134,1751418632620,-794.95,0.00015728,2]
[368972135,1751418632629,-794.95,0.00015732,2]
[368972136,1751418632639,-794.95,0.00015737,2]
[368972137,1751418632648,-794.95,0.00015741,2]
[368972138,1751418632657,-794.95,0.00015745,2]
[368972139,1751418632667,-635.04944641,0.00015749,2]
[368972140,1751418632958,-159.90055359,0.00015749,2]
[368972141,1751418632968,-794.95,0.00015753,2]
[368972142,1751418632978,-794.95,0.00015757,2]
[368972143,1751418632987,-181.4939453,0.00015761,2]
[368972144,1751418633014,-272.97258562,0.00015761,2]
[368972151,1751418637862,-340.48346908,0.00015761,2]
[368972152,1751418637871,-794.95,0.00015766,2]
[368972153,1751418637880,-794.95,0.0001577,2]
[368972154,1751418637889,-794.95,0.00015774,2]
[368972155,1751418637898,-794.95,0.00015778,2]
[368972156,1751418637907,-207.4,0.00015865,2]
[368972157,1751418637918,-151.0,0.00015865,2]
[368972158,1751418637928,-151.0,0.00015865,2]
[368972159,1751418637937,-616.86969065,0.00016038,2]
[368972160,1751418637957,-324.060861,0.00016038,2]
[368972161,1751418638148,-761.28856613,0.00016038,2]
[368972162,1751418638158,-1619.33248869,0.00016116,2]
[368972168,1751418639994,-5246.21751131,0.00016116,2]
[368972170,1751418640003,-1042.30790203,0.00016138,2]
[368972172,1751418640013,-300.0,0.00016151,2]
[368972174,1751418640022,-1702.21911776,0.00016212,2]
[368972176,1751418640032,-2500.0,0.00016335,2]
[368972178,1751418640041,-573.06434767,0.00016338,2]
[368972191,1751418640165,-1625.05863741,0.00016338,2]
[368972193,1751418640174,-242.85510285,0.00016338,2]
[368972195,1751418640183,-165.54860066,0.00016338,2]
[368972197,1751418640193,-2232.672,0.00016338,2]
[368972199,1751418640203,-1000.0,0.00016338,2]
[368972201,1751418640212,-500.0,0.00016338,2]
[368972203,1751418640221,-18116.6003,0.00016338,2]
[368972205,1751418640231,-672.64553483,0.00016338,2]
[368972207,1751418640243,-4327.35446517,0.00016338,2]
[368972209,1751418640252,-201.877451,0.00016377,2]
[368972211,1751418640261,-549.48,0.00016387,2]
[368972213,1751418640270,-1702.21911776,0.00016387,2]
[368972215,1751418640280,-1163.0,0.00016397,2]
[368972217,1751418640289,-1207.656,0.00016397,2]
[368972219,1751418640298,-886.0,0.00016397,2]
[368972221,1751418640307,-4106.0,0.00016397,2]
[368972223,1751418640316,-1736.31552951,0.00016397,2]
[368972225,1751418640328,-1608.29285254,0.00016397,2]
[368972227,1751418640339,-3805.39161795,0.00016397,2]
[368972229,1751418640348,-186.651,0.00016397,2]
[368972231,1751418640357,-753.0,0.00016397,2]
[368972233,1751418640366,-151.0,0.00016413,2]
[368972235,1751418640376,-250.0,0.00016427,2]
[368972237,1751418640385,-549.48,0.00016428,2]
[368972239,1751418640394,-549.48,0.00016428,2]
[368972241,1751418640403,-549.48,0.00016428,2]
[368972243,1751418640414,-500.0,0.00016432,2]
[368972245,1751418640423,-318.9823388,0.00016432,2]
[368972247,1751418640432,-500.0,0.00016432,2]
[368972249,1751418640441,-500.0,0.00016432,2]
[368972251,1751418640451,-500.0,0.00016432,2]
[368972253,1751418640460,-322.93732216,0.00016432,2]
[368972255,1751418640469,-500.0,0.00016432,2]
[368972257,1751418640478,-500.0,0.00016432,2]
[368972259,1751418640487,-500.0,0.00016432,2]
[368972261,1751418640496,-500.0,0.00016432,2]
[368972262,1751418640505,-500.0,0.00016432,2]
[368972263,1751418640515,-500.0,0.00016432,2]
[368972264,1751418640524,-500.0,0.00016432,2]
[368972265,1751418640534,-500.0,0.00016432,2]
[368972266,1751418640543,-334.53554085,0.00016432,2]
[368972267,1751418640552,-500.0,0.00016432,2]
[368972268,1751418640561,-500.0,0.00016432,2]
[368972269,1751418640570,-500.0,0.00016432,2]
[368972270,1751418640580,-500.0,0.00016432,2]
[368972271,1751418640593,-500.0,0.00016432,2]
[368972272,1751418640603,-500.0,0.00016432,2]
[368972274,1751418640612,-500.0,0.00016432,2]
[368972276,1751418640622,-500.0,0.00016432,2]
[368972277,1751418640631,-500.0,0.00016432,2]
[368972279,1751418640641,-500.0,0.00016432,2]
[368972281,1751418640650,-500.0,0.00016432,2]
[368972283,1751418640660,-500.0,0.00016432,2]
[368972286,1751418640670,-500.0,0.00016432,2]
[368972287,1751418640679,-27.02428835,0.00016432,2]
[368972291,1751418640704,-472.97571165,0.00016432,2]
[368972293,1751418640713,-500.0,0.00016432,2]
[368972295,1751418640722,-500.0,0.00016432,2]
[368972297,1751418640731,-500.0,0.00016432,2]
[368972299,1751418640741,-500.0,0.00016432,2]
[368972301,1751418640752,-500.0,0.00016432,2]
[368972303,1751418640761,-500.0,0.00016432,2]
[368972305,1751418640770,-500.0,0.00016432,2]
[368972307,1751418640779,-500.0,0.00016432,2]
[368972309,1751418640788,-500.0,0.00016432,2]
[368972311,1751418640797,-500.0,0.00016432,2]
[368972313,1751418640806,-500.0,0.00016432,2]
[368972315,1751418640816,-500.0,0.00016432,2]
[368972317,1751418640826,-500.0,0.00016432,2]
[368972319,1751418640836,-500.0,0.00016432,2]
[368972321,1751418640845,-500.0,0.00016432,2]
[368972323,1751418640854,-500.0,0.00016432,2]
[368972325,1751418640863,-500.0,0.00016432,2]
[368972327,1751418640872,-500.0,0.00016432,2]
[368972329,1751418640882,-500.0,0.00016432,2]
[368972331,1751418640891,-500.0,0.00016432,2]
[368972333,1751418640900,-500.0,0.00016432,2]
[368972335,1751418640909,-500.0,0.00016432,2]
[368972337,1751418640919,-500.0,0.00016432,2]
[368972339,1751418640928,-500.0,0.00016432,2]
[368972341,1751418640938,-500.0,0.00016432,2]
[368972343,1751418640947,-500.0,0.00016432,2]
[368972345,1751418640956,-366.24889702,0.00016432,2]
[368972369,1751418641169,-500.0,0.00016432,2]
[368972371,1751418641180,-500.0,0.00016432,2]
[368972373,1751418641189,-500.0,0.00016432,2]
[368972375,1751418641199,-500.0,0.00016432,2]
[368972377,1751418641208,-500.0,0.00016432,2]
[368972379,1751418641218,-500.0,0.00016432,2]
[368972381,1751418641228,-500.0,0.00016432,2]
[368972383,1751418641237,-500.0,0.00016432,2]
[368972385,1751418641246,-500.0,0.00016432,2]
[368972387,1751418641255,-500.0,0.00016432,2]
[368972389,1751418641264,-500.0,0.00016432,2]
[368972391,1751418641273,-500.0,0.00016432,2]
[368972393,1751418641282,-155.0,0.00016437,2]
[368972395,1751418641293,-500.0,0.00016437,2]
[368972397,1751418641302,-500.0,0.00016437,2]
[368972399,1751418641311,-395.0781284,0.00016437,2]
[368972401,1751418641320,-225.79976414,0.00016437,2]
[368972403,1751418641329,-233.60491217,0.00016437,2]
[368972405,1751418641341,-326.02058176,0.00016438,2]
[368972407,1751418641352,-490.0,0.00016438,2]
[368972409,1751418641361,-490.0,0.00016438,2]
[368972411,1751418641372,-490.0,0.00016438,2]
[368972413,1751418641381,-490.0,0.00016438,2]
[368972415,1751418641390,-490.0,0.00016438,2]
[368972417,1751418641400,-490.0,0.00016438,2]
[368972419,1751418641409,-490.0,0.00016438,2]
[368972421,1751418641418,-490.0,0.00016438,2]
[368972423,1751418641427,-490.0,0.00016438,2]
[368972425,1751418641436,-494.61836524,0.00016438,2]
[368972427,1751418641445,-490.0,0.00016438,2]
[368972429,1751418641455,-490.0,0.00016438,2]
[368972431,1751418641464,-490.0,0.00016438,2]
[368972433,1751418641474,-196.62356397,0.00016438,2]
[368972435,1751418641484,-490.0,0.00016438,2]
[368972437,1751418641493,-490.0,0.00016438,2]
[368972439,1751418641502,-527.35847221,0.00016438,2]
[368972441,1751418641511,-490.0,0.00016438,2]
[368972443,1751418641520,-490.0,0.00016438,2]
[368972445,1751418641530,-490.0,0.00016438,2]
[368972447,1751418641539,-490.0,0.00016438,2]
[368972449,1751418641548,-490.0,0.00016438,2]
[368972451,1751418641558,-490.0,0.00016438,2]
[368972453,1751418641567,-490.0,0.00016438,2]
[368972455,1751418641577,-490.0,0.00016438,2]
[368972457,1751418641586,-490.0,0.00016438,2]
[368972459,1751418641596,-490.0,0.00016438,2]
[368972461,1751418641605,-490.0,0.00016438,2]
[368972463,1751418641614,-490.0,0.00016438,2]
[368972465,1751418641623,-490.0,0.00016438,2]
[368972467,1751418641632,-332.32627313,0.00016438,2]
[368972469,1751418641642,-490.0,0.00016438,2]
[368972471,1751418641651,-490.0,0.00016438,2]
[368972473,1751418641660,-222.01,0.00016438,2]
[368972475,1751418641669,-490.0,0.00016438,2]
[368972477,1751418641679,-155.18,0.00016438,2]
[368972479,1751418641688,-490.0,0.00016438,2]
[368972481,1751418641697,-490.0,0.00016438,2]
[368972483,1751418641706,-600.43255863,0.00016438,2]
[368972485,1751418641715,-337.24,0.00016438,2]
[368972487,1751418641724,-491.39736154,0.00016438,2]
[368972488,1751418641733,-490.0,0.00016438,2]
[368972490,1751418641742,-490.0,0.00016438,2]
[368972492,1751418641752,-490.0,0.00016438,2]
[368972494,1751418641762,-490.0,0.00016438,2]
[368972496,1751418641771,-490.0,0.00016438,2]
[368972498,1751418641780,-490.0,0.00016438,2]
[368972500,1751418641789,-490.0,0.00016438,2]
[368972502,1751418641798,-490.0,0.00016438,2]
[368972504,1751418641808,-490.0,0.00016438,2]
[368972506,1751418641816,-490.0,0.00016438,2]
[368972508,1751418641825,-553.49,0.00016438,2]
[368972510,1751418641835,-490.8199065,0.00016438,2]
[368972512,1751418641844,-490.0,0.00016438,2]
[368972514,1751418641852,-490.0,0.00016438,2]
[368972516,1751418641862,-603.47880078,0.00016438,2]
[368972518,1751418641871,-490.0,0.00016438,2]
[368972520,1751418641881,-490.0,0.00016438,2]
[368972522,1751418641890,-490.0,0.00016438,2]
[368972524,1751418641899,-490.0,0.00016438,2]
[368972526,1751418641908,-490.0,0.00016438,2]
[368972528,1751418641917,-490.0,0.00016438,2]
[368972530,1751418641927,-490.0,0.00016438,2]
[368972532,1751418641936,-490.0,0.00016438,2]
[368972534,1751418641945,-490.0,0.00016438,2]
[368972536,1751418641955,-490.0,0.00016438,2]
[368972538,1751418641964,-491.31876175,0.00016438,2]
[368972540,1751418641973,-490.0,0.00016438,2]
[368972542,1751418641982,-490.0,0.00016438,2]
[368972544,1751418641991,-490.0,0.00016438,2]
[368972546,1751418642001,-490.0,0.00016438,2]
[368972548,1751418642010,-500.0,0.00016438,2]
[368972550,1751418642019,-490.0,0.00016438,2]
[368972552,1751418642028,-490.0,0.00016438,2]
[368972554,1751418642038,-300.0,0.00016438,2]
[368972556,1751418642047,-490.0,0.00016438,2]
[368972558,1751418642057,-490.0,0.00016438,2]
[368972560,1751418642066,-490.0,0.00016438,2]
[368972562,1751418642075,-186.12080441,0.00016438,2]
[368972564,1751418642084,-490.0,0.00016438,2]
[368972566,1751418642093,-309.71528711,0.00016438,2]
[368972568,1751418642103,-490.0,0.00016438,2]
[368972570,1751418642112,-490.0,0.00016438,2]
[368972572,1751418642121,-575.399009,0.00016438,2]
[368972574,1751418642133,-490.0,0.00016438,2]
[368972576,1751418642143,-490.0,0.00016438,2]
[368972578,1751418642152,-490.0,0.00016438,2]
[368972580,1751418642162,-490.0,0.00016438,2]
[368972582,1751418642171,-490.0,0.00016438,2]
[368972584,1751418642182,-490.0,0.00016438,2]
[368972586,1751418642191,-490.0,0.00016438,2]
[368972588,1751418642200,-490.0,0.00016438,2]
[368972590,1751418642210,-490.0,0.00016438,2]
[368972592,1751418642220,-490.0,0.00016438,2]
[368972594,1751418642229,-490.0,0.00016438,2]
[368972596,1751418642238,-490.0,0.00016438,2]
[368972598,1751418642246,-490.0,0.00016438,2]
[368972600,1751418642255,-490.0,0.00016438,2]
[368972602,1751418642265,-500.0,0.00016438,2]
[368972604,1751418642274,-490.0,0.00016438,2]
[368972606,1751418642283,-402.36594256,0.00016438,2]
[368972608,1751418642293,-490.0,0.00016438,2]
[368972610,1751418642302,-490.0,0.00016438,2]
[368972612,1751418642311,-490.0,0.00016438,2]
[368972614,1751418642321,-1216.96,0.00016438,2]
[368972616,1751418642330,-571.82452456,0.00016438,2]
[368972618,1751418642339,-490.0,0.00016438,2]
[368972620,1751418642348,-322.85708096,0.00016438,2]
[368972622,1751418642357,-490.0,0.00016438,2]
[368972624,1751418642366,-490.0,0.00016438,2]
[368972626,1751418642375,-490.0,0.00016438,2]
[368972628,1751418642384,-490.0,0.00016438,2]
[368972630,1751418642393,-490.0,0.00016438,2]
[368972632,1751418642402,-490.0,0.00016438,2]
[368972634,1751418642411,-296.89094214,0.00016438,2]
[368972636,1751418642425,-193.10905786,0.00016438,2]
[368972638,1751418642435,-490.0,0.00016438,2]
[368972640,1751418642444,-251.22736363,0.00016438,2]
[368972642,1751418642455,-238.77263637,0.00016438,2]
[368972644,1751418642464,-180.99975334,0.00016438,2]
[368972651,1751418642516,-309.00024666,0.00016438,2]
[368972653,1751418642525,-490.0,0.00016438,2]
[368972655,1751418642534,-551.0,0.00016438,2]
[368972657,1751418642543,-490.0,0.00016438,2]
[368972659,1751418642553,-490.0,0.00016438,2]
[368972661,1751418642562,-490.0,0.00016438,2]
[368972663,1751418642571,-490.0,0.00016438,2]
[368972665,1751418642580,-490.0,0.00016438,2]
[368972667,1751418642589,-490.0,0.00016438,2]
[368972669,1751418642599,-490.0,0.00016438,2]
[368972671,1751418642608,-490.0,0.00016438,2]
[368972673,1751418642617,-490.0,0.00016438,2]
[368972675,1751418642627,-490.0,0.00016438,2]
[368972677,1751418642636,-490.0,0.00016438,2]
[368972679,1751418642647,-490.0,0.00016438,2]
[368972681,1751418642656,-490.0,0.00016438,2]
[368972683,1751418642666,-151.0,0.00016438,2]
[368972685,1751418642675,-490.0,0.00016438,2]
[368972687,1751418642684,-490.0,0.00016438,2]
[368972689,1751418642693,-490.0,0.00016438,2]
[368972691,1751418642703,-627.42,0.00016438,2]
[368972693,1751418642712,-490.0,0.00016438,2]
[368972695,1751418642721,-490.0,0.00016438,2]
[368972697,1751418642730,-490.0,0.00016438,2]
[368972698,1751418642739,-492.16458875,0.00016438,2]
[368972700,1751418642749,-490.0,0.00016438,2]
[368972702,1751418642758,-490.0,0.00016438,2]
[368972704,1751418642768,-268.23652243,0.00016438,2]
[368972706,1751418642777,-490.0,0.00016438,2]
[368972708,1751418642786,-490.0,0.00016438,2]
[368972710,1751418642796,-490.0,0.00016438,2]
[368972712,1751418642805,-490.0,0.00016438,2]
[368972714,1751418642816,-151.0,0.00016438,2]
[368972716,1751418642825,-490.0,0.00016438,2]
[368972718,1751418642834,-490.0,0.00016438,2]
[368972720,1751418642843,-494.65,0.00016438,2]
[368972722,1751418642853,-151.0,0.00016438,2]
[368972724,1751418642862,-151.0,0.00016438,2]
[368972726,1751418642871,-490.0,0.00016438,2]
[368972728,1751418642880,-490.0,0.00016438,2]
[368972730,1751418642892,-490.0,0.00016438,2]
[368972732,1751418642901,-490.0,0.00016438,2]
[368972734,1751418642911,-490.0,0.00016438,2]
[368972736,1751418642920,-490.0,0.00016438,2]
[368972739,1751418642930,-151.0,0.00016438,2]
[368972741,1751418642944,-490.0,0.00016438,2]
[368972743,1751418642953,-151.0,0.00016438,2]
[368972746,1751418642963,-162.516029,0.00016438,2]
[368972748,1751418642973,-151.573666,0.00016438,2]
[368972750,1751418642983,-490.0,0.00016438,2]
[368972753,1751418642992,-151.0,0.00016438,2]
[368972754,1751418643001,-151.0,0.00016438,2]
[368972757,1751418643011,-500.0,0.00016438,2]
[368972758,1751418643020,-151.0,0.00016438,2]
[368972760,1751418643030,-490.0,0.00016438,2]
[368972762,1751418643039,-490.0,0.00016438,2]
[368972763,1751418643050,-490.0,0.00016438,2]
[368972764,1751418643059,-490.0,0.00016438,2]
[368972765,1751418643069,-490.0,0.00016438,2]
[368972766,1751418643079,-490.0,0.00016438,2]
[368972767,1751418643088,-151.0,0.00016438,2]
[368972768,1751418643098,-490.0,0.00016438,2]
[368972769,1751418643107,-490.0,0.00016438,2]
[368972770,1751418643116,-152.270941,0.00016438,2]
[368972771,1751418643126,-151.0,0.00016438,2]
[368972773,1751418643139,-151.0,0.00016438,2]
[368972774,1751418643148,-373.40284082,0.00016438,2]
[368972776,1751418643158,-151.0,0.00016438,2]
[368972778,1751418643167,-490.0,0.00016438,2]
[368972780,1751418643176,-490.0,0.00016438,2]
[368972782,1751418643186,-151.0,0.00016438,2]
[368972785,1751418643195,-490.0,0.00016438,2]
[368972786,1751418643205,-555.22,0.00016438,2]
[368972789,1751418643215,-490.0,0.00016438,2]
[368972790,1751418643224,-490.0,0.00016438,2]
[368972793,1751418643234,-490.0,0.00016438,2]
[368972795,1751418643243,-506.78,0.00016438,2]
[368972797,1751418643253,-151.0,0.00016438,2]
[368972799,1751418643262,-490.0,0.00016438,2]
[368972801,1751418643271,-490.0,0.00016438,2]
[368972803,1751418643280,-897.578496,0.00016438,2]
[368972805,1751418643290,-230.05026474,0.00016438,2]
[368972807,1751418643299,-533.295327,0.00016438,2]
[368972809,1751418643308,-151.0,0.00016438,2]
[368972811,1751418643317,-533.295327,0.00016438,2]
[368972813,1751418643326,-151.0,0.00016438,2]
[368972814,1751418643335,-151.0,0.00016438,2]
[368972816,1751418643345,-490.0,0.00016438,2]
[368972818,1751418643355,-151.0,0.00016438,2]
[368972820,1751418643364,-490.0,0.00016438,2]
[368972822,1751418643374,-490.0,0.00016438,2]
[368972824,1751418643383,-490.0,0.00016438,2]
[368972826,1751418643392,-151.0,0.00016438,2]
[368972828,1751418643401,-152.147004,0.00016438,2]
[368972830,1751418643410,-151.0,0.00016438,2]
[368972832,1751418643420,-552.48,0.00016438,2]
[368972834,1751418643430,-270.81,0.00016438,2]
[368972836,1751418643439,-490.0,0.00016438,2]
[368972839,1751418643448,-151.0,0.00016438,2]
[368972842,1751418643458,-490.0,0.00016438,2]
[368972845,1751418643467,-1000.0,0.00016438,2]
[368972848,1751418643476,-490.0,0.00016438,2]
[368972851,1751418643485,-151.0,0.00016438,2]
[368972853,1751418643494,-490.0,0.00016438,2]
[368972855,1751418643503,-541.72,0.00016438,2]
[368972857,1751418643513,-490.0,0.00016438,2]
[368972859,1751418643522,-2179.18,0.00016438,2]
[368972861,1751418643531,-490.0,0.00016438,2]
[368972863,1751418643540,-1524.79,0.00016438,2]
[368972865,1751418643549,-490.0,0.00016438,2]
[368972867,1751418643559,-1607.26,0.00016438,2]
[368972869,1751418643568,-490.0,0.00016438,2]
[368972871,1751418643577,-490.0,0.00016438,2]
[368972873,1751418643586,-490.0,0.00016438,2]
[368972875,1751418643595,-490.0,0.00016438,2]
[368972877,1751418643605,-1576.33,0.00016438,2]
[368972879,1751418643614,-151.0,0.00016438,2]
[368972881,1751418643624,-205.730948,0.00016438,2]
[368972883,1751418643634,-2628.71,0.00016438,2]
[368972885,1751418643644,-151.0,0.00016438,2]
[368972887,1751418643653,-205.730948,0.00016438,2]
[368972889,1751418643663,-490.0,0.00016438,2]
[368972891,1751418643672,-548.65,0.00016438,2]
[368972893,1751418643681,-156.205839,0.00016438,2]
[368972895,1751418643691,-153.403672,0.00016438,2]
[368972897,1751418643700,-490.0,0.00016438,2]
[368972899,1751418643710,-152.419746,0.00016438,2]
[368972901,1751418643719,-1246.157225,0.00016438,2]
[368972903,1751418643728,-490.0,0.00016438,2]
[368972905,1751418643738,-490.0,0.00016438,2]
[368972907,1751418643747,-1246.157225,0.00016438,2]
[368972910,1751418643757,-490.0,0.00016438,2]
[368972911,1751418643766,-151.0,0.00016438,2]
[368972913,1751418643775,-13096.17,0.00016438,2]
[368972915,1751418643784,-151.0,0.00016438,2]
[368972917,1751418643794,-152.467864,0.00016438,2]
[368972919,1751418643803,-766.31,0.00016438,2]
[368972921,1751418643811,-151.0,0.00016438,2]
[368972923,1751418643821,-490.0,0.00016438,2]
[368972925,1751418643830,-151.0,0.00016438,2]
[368972928,1751418643840,-151.0,0.00016438,2]
[368972929,1751418643849,-490.0,0.00016438,2]
[368972931,1751418643859,-156.191065,0.00016438,2]
[368972933,1751418643868,-156.191065,0.00016438,2]
[368972935,1751418643877,-151.0,0.00016438,2]
[368972937,1751418643886,-848.28,0.00016438,2]
[368972940,1751418643897,-490.0,0.00016438,2]
[368972942,1751418643906,-1822.04,0.00016438,2]
[368972943,1751418643915,-490.0,0.00016438,2]
[368972945,1751418643925,-490.0,0.00016438,2]
[368972947,1751418643934,-490.0,0.00016438,2]
[368972949,1751418643943,-490.0,0.00016438,2]
[368972951,1751418643952,-1523.45,0.00016438,2]
[368972953,1751418643962,-549.48,0.00016468,2]
[368972955,1751418643971,-151.0,0.00016478,2]
[368972957,1751418643980,-152.533519,0.00016478,2]
[368972959,1751418643989,-151.0,0.00016478,2]
[368972961,1751418643999,-151.0,0.00016478,2]
[368972963,1751418644010,-153.669861,0.00016478,2]
[368972965,1751418644019,-152.049948,0.00016478,2]
[368972967,1751418644028,-151.0,0.00016478,2]
[368972969,1751418644038,-353.0,0.00016478,2]
[368972971,1751418644047,-835.99020467,0.00016506,2]
[368972973,1751418644056,-4104.7995,0.00016549,2]
[368972975,1751418644066,-5593.65225855,0.0001655,2]
[368972977,1751418644076,-799.04087722,0.00016551,2]
[368972979,1751418644085,-1702.21911776,0.00016561,2]
[368972981,1751418644094,-200.0,0.00016578,2]
[368972983,1751418644103,-151.0,0.00016583,2]
[368972985,1751418644113,-151.0,0.00016583,2]
[368972987,1751418644122,-151.0,0.00016583,2]
[368972989,1751418644134,-151.0,0.00016583,2]
[368972991,1751418644146,-151.0,0.00016583,2]
[368972993,1751418644156,-152.603084,0.00016583,2]
[368972995,1751418644165,-398.118749,0.00016583,2]
[368972997,1751418644174,-151.0,0.00016583,2]
[368972999,1751418644185,-398.118749,0.00016583,2]
[368973001,1751418644194,-243.113505,0.00016583,2]
[368973003,1751418644203,-151.0,0.00016583,2]